Cogmind - Beta 15 @@@ ROGUE MODE // 2025.07.15 @ 17:11:52 Player: BlobtheGreat Result: Destroyed by S-10 Pest with Light Assault Rifle Performance ------------- Evolutions (2) 1000 Regions Visited (7) 1400 Robots Destroyed (123) 615 Value Destroyed (3131) 3131 Prototype IDs (4) 80 Alien Tech Used (0) 0 Bonus (113) 113 TOTAL SCORE: 6339 Bonus ------- Follower Combat Kills 113 Cogmind --------- Core Integrity 0/550 Matter 192/300 Energy 160/160 System Corruption 6% Temperature Cool (-100) Movement Walking (120) Location -8/Materials Parts ------- > --- POWER (1) -------- Light Nuclear Core > --- PROPULSION (4) --- Aluminum Leg Carbon-fiber Leg Carbon-fiber Leg Carbon-fiber Leg > --- UTILITY (4) ------ Cryofiber Web Improved Heat Sink High-capacity Storage Unit Hacking Suite > --- WEAPON (2) ------- High-powered Shotgun Enhanced Autogun > --- INVENTORY (20) --- Light Nuclear Core Armored Treads Carbon-fiber Leg Improved Flight Unit Improved Flight Unit Improved Flight Unit Improved Flight Unit Improved Flight Unit Advanced Heat Sink Seismic Detector Spread Laser Minigun Minigun High-powered Shotgun Improved Light Cannon Improved Light Cannon Rocket Launcher Improved Datajack Plasma Cutter Flail Peak State ------------ > --- POWER ------------ Light Nuclear Core > --- PROPULSION ------- Aluminum Leg Carbon-fiber Leg Carbon-fiber Leg Carbon-fiber Leg > --- UTILITY ---------- Cryofiber Web Improved Heat Sink High-capacity Storage Unit Hacking Suite > --- WEAPON ----------- High-powered Shotgun Enhanced Autogun > --- INVENTORY -------- Light Nuclear Core Armored Treads Carbon-fiber Leg Improved Flight Unit Improved Flight Unit Improved Flight Unit Improved Flight Unit Improved Flight Unit Advanced Heat Sink Seismic Detector Spread Laser Minigun Minigun High-powered Shotgun Improved Light Cannon Improved Light Cannon Rocket Launcher Improved Datajack Plasma Cutter Flail [Rating: 35] Favorites ----------- Power Improved Ion Engine Engine Improved Ion Engine Power Core Light Nuclear Core Propulsion Light Treads Treads Light Treads Leg Aluminum Leg Flight Unit Improved Flight Unit Utility High-capacity Storage Unit Device Improved Heat Sink Storage High-capacity Storage Unit Hackware Hacking Suite Protection Medium Armor Plating Weapon Spread Laser Energy Gun Spread Laser Energy Cannon Ion Cannon Ballistic Gun Assault Rifle Launcher Grenade Launcher Build | -11 -10 -10 -9 -9 -9 -8 -8 ------- Run | Yrd Mat Min Mat Min Exi Min Mat Slots Evolved 4 | . . . 2 . . . 2 Power . | . . . . . . . . Propulsion 2 | . . . 1 . . . 1 Utility 2 | . . . 1 . . . 1 Weapon . | . . . . . . . . Parts Attached 81 | 7 11 1 29 1 . 6 26 Power 7 | 1 2 . 2 . . . 2 Engine 6 | 1 2 . 2 . . . 1 Core 1 | . . . . . . . 1 Reactor . | . . . . . . . . Propulsion 29 | 2 2 . 11 . . 2 12 Treads 16 | 2 . . 10 . . 2 2 Leg 12 | . 2 . 1 . . . 9 Wheel . | . . . . . . . . Hover . | . . . . . . . . Flight 1 | . . . . . . . 1 Utility 19 | 2 4 . 4 . . 3 6 Device 8 | 1 1 . 1 . . 1 4 Storage 3 | 1 2 . . . . . . Processor . | . . . . . . . . Hackware 1 | . . . . . . . 1 Protection 7 | . 1 . 3 . . 2 1 Artifact . | . . . . . . . . Weapon 26 | 2 3 1 12 1 . 1 6 Energy Gun 9 | . . . 5 1 . . 3 Energy Cannon 1 | . . . 1 . . . . Ballistic Gun 14 | 2 2 1 5 . . 1 3 Ballistic Cannon . | . . . . . . . . Launcher 2 | . 1 . 1 . . . . Special Weapon . | . . . . . . . . Impact Weapon . | . . . . . . . . Slashing Weapon . | . . . . . . . . Piercing Weapon . | . . . . . . . . Special Melee Weapon . | . . . . . . . . Unidentified Prototypes 4 | . . . 1 . . . 3 Parts Lost 34 | . 5 . 2 . . 4 23 Power 3 | . 1 . . . . . 2 Propulsion 12 | . 1 . 2 . . 2 7 Utility 8 | . 1 . . . . 2 5 Weapon 11 | . 2 . . . . . 9 Highest Loss Streak 8 | . 5 . 1 . . 2 8 To Critical Strikes . | . . . . . . . . Average Backups 16 | 4 9 12 18 20 20 19 17 Power . | . . 1 1 1 1 1 . Propulsion 2 | 3 3 4 2 2 2 1 3 Utility 3 | . 1 2 4 5 5 4 3 Weapon 7 | . 3 4 9 10 10 10 7 Tool/Special . | . . . . . . . . Unused Backups 30 | . 2 2 7 . . . 19 Power 2 | . . . 1 . . . 1 Propulsion 13 | . 2 2 . . . . 9 Utility 2 | . . . 1 . . . 1 Weapon 11 | . . . 5 . . . 6 Tool/Special 2 | . . . . . . . 2 Average Slot Usage (%) 95 | . 95 100 99 100 81 99 79 Engine 10 | . 14 14 11 11 11 11 2 Treads 21 | . 13 . 31 33 33 32 6 Leg 9 | . 14 28 1 . . . 21 Device 11 | . 7 14 11 11 11 11 13 Storage 11 | . 14 14 11 11 11 11 9 Protection 6 | . 2 . 10 11 11 10 1 Energy Gun 8 | . . . 9 21 4 14 4 Ballistic Gun 13 | . 27 28 11 . . 7 12 Peak Build Rating 35 | 7 8 10 21 19 19 21 35 Average Rating 15 | 5 7 8 17 18 15 19 22 On Entrance 12 | . 7 8 10 19 19 19 21 Naked Turns . | . . . . . . . . Heaviest Build 65 | 14 50 50 62 61 61 61 65 Greatest Support 60 | 40 40 20 60 60 60 60 60 Greatest Overweight (x) 19 | . 4 2 2 1 1 1 19 Average Overweight (x) . | . 1 2 . 1 . 1 1 Largest Inventory Capacity 20 | 8 20 20 20 20 20 20 20 Average Capacity 19 | 7 17 20 20 20 20 20 20 Most Carried 20 | 7 12 20 20 20 20 20 20 Average Carried 16 | 4 9 15 19 20 20 19 17 Final Capacity 20 | 8 20 20 20 20 20 20 20 Final Carried 20 | 7 12 20 20 20 20 19 20 Class Distribution -------------------- 58% | Scavenger-Mutant 41% | Mutant Dominant Class ---------------- Mutant | -10/Materials Mutant | -10/Mines Scavenger-Mutant | -9/Materials Scavenger-Mutant | -9/Mines Scavenger-Mutant | -9/Exiles Scavenger-Mutant | -8/Mines Scavenger-Mutant | -8/Materials Resources | -11 -10 -10 -9 -9 -9 -8 -8 ----------- Run | Yrd Mat Min Mat Min Exi Min Mat Matter Collected 2753 | 322 484 30 806 81 . 207 823 Remotely . | . . . . . . . . Salvage Created 3478 | 103 696 5 1020 111 . 317 1226 Parts 231 | 11 39 3 78 7 . 25 68 Haulers Intercepted 9 | . 2 . 4 . . . 3 Recyclers Shooed 6 | . 1 . 1 . . . 4 Parts Field Recycled . | . . . . . . . . Retrieved Matter . | . . . . . . . . Parts Self-Destructed . | . . . . . . . . Prevented . | . . . . . . . . Kills | -11 -10 -10 -9 -9 -9 -8 -8 ------- Run | Yrd Mat Min Mat Min Exi Min Mat Combat Hostiles Destroyed 83 | . 13 3 27 6 . 11 23 Guns 61 | . 10 . 19 3 . 11 18 AOE 22 | . 3 3 8 3 . . 5 Classes Destroyed 16 | 2 5 1 3 . . . 5 Worker 5 | . . 1 1 . . . 3 Builder 4 | . . . 2 . . . 2 Tunneler 4 | 3 . . . . . 1 . Hauler 9 | . 2 . 4 . . . 3 Recycler 6 | 1 . . 1 . . . 4 Operator 5 | . 2 . 3 . . . . Watcher 7 | . 3 . 4 . . . . Swarmer 24 | . 3 3 11 3 . 4 . Cutter 2 | . . . . . . . 2 Grunt 41 | . 10 . 9 3 . 7 12 Brawler 1 | . . . . . . . 1 Duelist 1 | . . . 1 . . . . Sentry 9 | . . . 6 . . . 3 Specialist 2 | . . . . . . . 2 Hunter 2 | . . . . . . . 2 Heavy 1 | . . . . . . . 1 Best Kill Streak 6 | 3 5 4 6 3 . 4 6 Combat Bots Only 5 | . 5 3 5 3 . 4 5 Max Kills in Single Turn 4 | 1 2 4 3 2 . 2 3 Gunslinging . | . . . . . . . . Exploded 3 | . 2 3 3 2 . . 2 Melee . | . . . . . . . . Uniques/NPCs Destroyed . | . . . . . . . . Combat | -11 -10 -10 -9 -9 -9 -8 -8 -------- Run | Yrd Mat Min Mat Min Exi Min Mat Hostile Shots Fired 479 | . 74 5 125 28 . 69 178 Missed 121 | . 25 1 29 8 . 12 46 Hits 358 | . 49 4 96 20 . 57 132 Melee 4 | . . . 2 . . . 2 Projectile 354 | . 49 4 94 20 . 57 130 AOE 1 | . . . . . . . 1 Critical Strikes 16 | . 2 . 4 . . 2 8 Actively Blocked 1 | . 1 . . . . . . Damage Taken 5781 | . 644 28 1368 241 . 870 2630 Core 917 | . 51 7 163 27 . 115 554 Absorbed by Shields . | . . . . . . . . Redirected to Shielding 97 | . 53 . 44 . . . . Regen/Repaired (Parts) 100 | . 100 . . . . . . Core Remaining (%) 66 | 100 . 76 . . . 23 . Volleys Fired 336 | 13 75 1 113 8 . 23 103 Largest 2 | 2 2 1 2 2 . 2 2 Hottest 130 | 40 40 30 130 130 . 130 130 Shots Fired 639 | 26 147 1 213 14 . 47 191 Gun 609 | 26 145 . 200 12 . 47 179 Cannon 3 | . . . 3 . . . . Launcher 27 | . 2 1 10 2 . . 12 Special . | . . . . . . . . Kinetic 445 | 26 145 . 124 . . 35 115 Thermal 153 | . . . 79 12 . 12 50 Explosive 27 | . 2 1 10 2 . . 12 Electromagnetic 14 | . . . . . . . 14 Robot Hit Streak 24 | 3 24 . 18 10 . 9 9 Robot Miss Streak 10 | 2 6 . 7 3 . 5 10 Penetration Max . | . . . . . . . . Secondary Targets 5 | . . . . . . 2 3 Max Gunslinging Chain 1 | . . . . . . 1 1 Shots Hit Robots 441 | 16 87 . 158 11 . 41 128 Core Hits 312 | 6 42 4 104 19 . 37 100 Critical Kills 2 | . . . . . . 1 1 Critical Parts Destroyed 2 | . . . 1 . . . 1 Critical Strikes 6 | . . . 1 . . 1 4 Burn 2 | . . . . . . . 2 Destroy 4 | . . . 1 . . 1 2 Melee Attacks . | . . . . . . . . Impact . | . . . . . . . . Slashing . | . . . . . . . . Piercing . | . . . . . . . . Sneak Attacks . | . . . . . . . . Combat Hostiles . | . . . . . . . . Follow-up Attacks . | . . . . . . . . Damage Inflicted 8481 | 166 1192 304 2834 358 . 683 2944 Guns 6392 | 166 986 . 2260 174 . 671 2135 Cannons . | . . . . . . . . Explosions 2005 | . 197 291 545 179 . . 793 Melee . | . . . . . . . . Ramming 84 | . 9 13 29 5 . 12 16 Kinetic 4325 | 166 986 . 1320 . . 500 1353 Thermal 2118 | . . 169 940 174 . 171 664 Explosive 1836 | . 197 122 545 179 . . 793 Electromagnetic 118 | . . . . . . . 118 Impact . | . . . . . . . . Slashing . | . . . . . . . . Piercing . | . . . . . . . . Highest Corruption 6 | . . . 1 1 1 1 6 Average Corruption 2 | . . . 1 1 1 1 6 Corruption Purged . | . . . . . . . . Corruption Blocked . | . . . . . . . . Effects 57 | . . . 7 11 1 8 30 Message Errors 12 | . . . 2 1 . 2 7 Matter Fused 11 | . . . 1 3 . . 7 Heat Flow Errors 4 | . . . . . 1 2 1 Energy Discharges 7 | . . . 1 3 . 1 2 Parts Fused 1 | . . . . . . . 1 Data Loss (minor) 14 | . . . 2 3 . 1 8 Data Loss (major) 3 | . . . . 1 . 1 1 Misfires 3 | . . . . . . 1 2 Alerts 1 | . . . 1 . . . . Weapon Failures 1 | . . . . . . . 1 Overload Shots . | . . . . . . . . Overflow Damage 137 | . 38 40 41 8 . . 10 Projectiles . | . . . . . . . . Explosions 137 | . 38 40 41 8 . . 10 Melee . | . . . . . . . . Knockbacks . | . . . . . . . . Impact . | . . . . . . . . Kinetic . | . . . . . . . . Secondary . | . . . . . . . . Self-Inflicted Damage 120 | . 18 . 77 . . . 25 Shots 5 | . 1 . 3 . . . 1 Rammed 9 | . . . 3 2 . 4 . Targets Rammed 14 | . 1 2 3 2 . 4 2 Kicked 5 | . 1 2 . . . . 2 Crushed . | . . . . . . . . Highest Temperature 309 | . 18 . 300 228 157 275 309 Average Temperature 68 | . 8 . 65 120 80 92 77 Received Heat Transfer 2256 | . 345 . 459 120 . 468 864 Siege Activations . | . . . . . . . . Martial Activations . | . . . . . . . . Shielding Activations . | . . . . . . . . Robots Disrupted . | . . . . . . . . Combat Hostiles . | . . . . . . . . Robots Corrupted . | . . . . . . . . Combat Hostiles . | . . . . . . . . Parts Fried . | . . . . . . . . Impact Corruptions . | . . . . . . . . Robots Melted . | . . . . . . . . Combat Hostiles . | . . . . . . . . Parts Melted 2 | . . . . . . . 2 Heat Transferred 3002 | . . 300 1150 215 . 210 1127 Parts Sabotaged . | . . . . . . . . Parts Stolen . | . . . . . . . . Parts Stripped . | . . . . . . . . Power Chain Reactions . | . . . . . . . . Alert | -11 -10 -10 -9 -9 -9 -8 -8 ------- Run | Yrd Mat Min Mat Min Exi Min Mat Maximum Alert Level 1 | . . . 1 . . . 1 Low Security (%) 91 | 100 100 100 65 100 . 100 97 Level 1 8 | . . . 34 . . . 2 Level 2 . | . . . . . . . . Level 3 . | . . . . . . . . Level 4 . | . . . . . . . . Level 5 . | . . . . . . . . High Security . | . . . . . . . . Max Security . | . . . . . . . . Peak Influence 289 | 10 106 157 289 161 . 101 207 Initial 101 | . . . . 101 . . 37 Average 62 | 1 20 25 151 24 . 14 92 Influence Increases 2739 | 20 407 157 876 154 . 349 776 Destroy 0b10 Robot/C 1720 | . 260 60 540 120 . 280 460 Destroy 0b10 Robot/NC 200 | 20 35 5 75 . . 5 60 Destroy Leader 422 | . 60 10 156 20 . 50 126 Allied During Kill 14 | . . . . . . 14 . Trap Triggered on 0b10 10 | . . . 10 . . . . Successful Hack 65 | . 42 . 19 . . . 4 Disable Machine 90 | . . 60 . . . . 30 Destroy Structure 173 | . 10 22 76 14 . . 51 Lose Combat Pursuer 45 | . . . . . . . 45 Influence Decreases 2689 | 20 407 157 615 415 . 252 823 Entered New Map 220 | . . . . 160 . . 60 Time Decay 1836 | 20 357 157 439 255 . 195 413 Lost Part 327 | . 50 . 20 . . 37 220 Lost Ally 20 | . . . . . . 20 . Purge Threat 286 | . . . 156 . . . 130 Squads Dispatched 11 | . 1 1 4 . . . 5 Investigation 2 | . 1 1 . . . . . Extermination . | . . . . . . . . Reinforcement 9 | . . . 4 . . . 5 Assault . | . . . . . . . . Garrison . | . . . . . . . . Intercept . | . . . . . . . . Searches Triggered . | . . . . . . . . Construction Impeded . | . . . . . . . . Haulers Reinforced . | . . . . . . . . Active Scanning Responses . | . . . . . . . . Cargo Convoy Interrupts . | . . . . . . . . Stealth | -11 -10 -10 -9 -9 -9 -8 -8 --------- Run | Yrd Mat Min Mat Min Exi Min Mat Distress Signals 3 | . . . 1 . . . 2 Communications Jammed . | . . . . . . . . Distress Signals . | . . . . . . . . Times Spotted 131 | . 32 3 42 6 . 14 34 Peak Tracking Total 7 | . 5 3 5 3 . 4 7 Tactical Retreats 2 | . . . . . . . 2 Traps | -11 -10 -10 -9 -9 -9 -8 -8 ------- Run | Yrd Mat Min Mat Min Exi Min Mat Traps Triggered 3 | . 1 . 2 . . . . Indirectly . | . . . . . . . . Trap Hack Attempts . | . . . . . . . . Triggered . | . . . . . . . . Disarmed . | . . . . . . . . Reprogrammed . | . . . . . . . . Reused 1 | . . . 1 . . . . Traps Extracted . | . . . . . . . . Installed 3 | . . . 3 . . . . Triggered 1 | . . . 1 . . . . Most Traps Carried 3 | . . 3 3 . . . . Machines | -11 -10 -10 -9 -9 -9 -8 -8 ---------- Run | Yrd Mat Min Mat Min Exi Min Mat Machines Disabled 7 | . 1 4 . . . . 2 Max in Single Turn 4 | . 1 4 . . . . 1 Machines Repaired . | . . . . . . . . Machines Dismantled . | . . . . . . . . Machines Sabotaged . | . . . . . . . . Overloaded Fab Kills . | . . . . . . . . Hacking | -11 -10 -10 -9 -9 -9 -8 -8 --------- Run | Yrd Mat Min Mat Min Exi Min Mat Machines Accessed 24 | . 9 1 7 1 1 . 5 Terminals 21 | . 8 . 7 1 . . 5 Fabricators . | . . . . . . . . Repair Stations 1 | . 1 . . . . . . Recycling Units . | . . . . . . . . Scanalyzers . | . . . . . . . . Garrison Access . | . . . . . . . . Total Hacks 64 | . 25 1 19 2 1 . 16 Successful 31 | . 12 1 11 . 1 . 6 Failed 33 | . 13 . 8 2 . . 10 Catastrophic 2 | . 1 . 1 . . . . Database Lockouts . | . . . . . . . . Manual 54 | . 23 . 14 . 1 . 16 Terminals 60 | . 23 . 19 2 . . 16 Fabricators . | . . . . . . . . Repair Stations 2 | . 2 . . . . . . Recycling Units . | . . . . . . . . Scanalyzers . | . . . . . . . . Garrison Access . | . . . . . . . . Terminal Hacks 13 | . 4 1 6 . 1 . 1 Record 1 | . . . . . 1 . . Robot Analysis 2 | . 1 . 1 . . . . Open Door 1 | . . 1 . . . . . Alert Level 2 | . . . 2 . . . . Unreport Threat 3 | . . . 2 . . . 1 Locate Traps 1 | . 1 . . . . . . Recall Reinforcements 1 | . 1 . . . . . . Hauler Manifests 2 | . 1 . 1 . . . . Fabricator Hacks . | . . . . . . . . Repair Station Hacks 2 | . 2 . . . . . . Scan Component 1 | . 1 . . . . . . Repair 1 | . 1 . . . . . . Recycling Unit Hacks . | . . . . . . . . Scanalyzer . | . . . . . . . . Garrison Access Hacks . | . . . . . . . . Unauthorized Hacks 16 | . 6 . 5 . . . 5 Terminals 16 | . 6 . 5 . . . 5 Skim 16 | . 6 . 5 . . . 5 Fabricators . | . . . . . . . . Repair Stations . | . . . . . . . . Recycling Units . | . . . . . . . . Scanalyzers . | . . . . . . . . Garrison Access . | . . . . . . . . Data Cores Recovered 1 | . 1 . . . . . . Used 1 | . 1 . . . . . . Hacking Detections 22 | . 9 . 7 1 . . 5 Full Trace Events 1 | . 1 . . . . . . Feedback Events . | . . . . . . . . Feedback Blocked . | . . . . . . . . Robot Schematics Acquired . | . . . . . . . . Robots Built . | . . . . . . . . Authchips . | . . . . . . . . Time . | . . . . . . . . Total Robot Build Rating . | . . . . . . . . Part Schematics Acquired . | . . . . . . . . Parts Built . | . . . . . . . . Authchips . | . . . . . . . . Time . | . . . . . . . . Total Part Build Rating . | . . . . . . . . Parts Repaired 1 | . 1 . . . . . . Time 26 | . 26 . . . . . . Parts Recycled . | . . . . . . . . Recycled Matter . | . . . . . . . . Retrieved Matter . | . . . . . . . . Retrieved Components . | . . . . . . . . Parts Scanalyzed . | . . . . . . . . Part Schematics Acquired . | . . . . . . . . Parts Damaged . | . . . . . . . . Bothacking | -11 -10 -10 -9 -9 -9 -8 -8 ------------ Run | Yrd Mat Min Mat Min Exi Min Mat Used RIF Installer . | . . . . . . . . Robots Hacked . | . . . . . . . . Non-combat . | . . . . . . . . Combat . | . . . . . . . . Robot Hacks Applied . | . . . . . . . . Relay Couplers Released . | . . . . . . . . Fabnet Peak Effective % . | . . . . . . . . Robots Rewired . | . . . . . . . . Allies Hacked . | . . . . . . . . Hacks Repelled . | . . . . . . . . Allies | -11 -10 -10 -9 -9 -9 -8 -8 -------- Run | Yrd Mat Min Mat Min Exi Min Mat Total Allies 3 | . . . . 3 . . . Largest Group 3 | . . . . 3 3 3 . Highest-Rated Group 40 | . . . . 40 40 40 . Highest-Rated Ally 16 | . . . . 16 16 16 . Total Orders . | . . . . . . . . Ally Attacks 28 | . . . . . . 28 . Total Damage 324 | . . . . . . 324 . Kills 3 | . . . . . . 3 . Allies Corrupted . | . . . . . . . . Allies Melted . | . . . . . . . . Intel | -11 -10 -10 -9 -9 -9 -8 -8 ------- Run | Yrd Mat Min Mat Min Exi Min Mat Active Infowar (turns) 4130 | 69 969 1234 1410 . . . 448 Seismic 4130 | 69 969 1234 1410 . . . 448 Robot Analysis Total 2 | . 1 . 1 . . . . Derelict Logs Recovered 3 | . . 1 . 2 . . . Drone Launches . | . . . . . . . . Drone Recoveries . | . . . . . . . . Exploration | -11 -10 -10 -9 -9 -9 -8 -8 ------------- Run | Yrd Mat Min Mat Min Exi Min Mat Turns Passed 10064 | 164 1774 1234 2302 1646 411 1206 1327 Spaces Moved 4010 | 72 660 466 985 669 241 462 455 Core 6 | 4 . . . . . . 2 Treads 2853 | 68 328 . 950 669 241 462 135 Legs 1151 | . 332 466 35 . . . 318 Wheels . | . . . . . . . . Hover . | . . . . . . . . Flight . | . . . . . . . . Fastest Speed 50 | 50 160 260 160 240 160 240 120 Average Speed 217 | 153 226 260 183 240 169 240 211 Slowest Speed 1000 | 160 400 260 320 240 240 240 1000 Overloaded Moves . | . . . . . . . . Propulsion Burnouts . | . . . . . . . . Robots Hopped . | . . . . . . . . Potential Cave-ins . | . . . . . . . . Cave-ins Triggered 1 | . . . . . . . 1 Exploration Rate (%) 71 | 5 97 99 91 100 50 96 34 Regions Visited 7 Branch Regions 4 Pre-discovered Areas 6 | . 3 . . 2 1 . . Known Exits Taken 1 | . . 1 . . . . . Unknown Exits Taken 6 | 1 1 . 1 1 1 1 . Scrap Searched 6 | . . 1 . 3 . 2 . Spaces Dug 45 | . 8 24 7 . . . 6 Terrain Destroyed 204 | . 8 24 82 20 . . 70 Melee . | . . . . . . . . Projectile 2 | . . . 1 . . . 1 AOE 202 | . 8 24 81 20 . . 69 Terrain Rammed . | . . . . . . . . Walls Destroyed . | . . . . . . . . Machines Disabled . | . . . . . . . . Actions | -11 -10 -10 -9 -9 -9 -8 -8 --------- Run | Yrd Mat Min Mat Min Exi Min Mat Total 4730 | 98 798 485 1272 693 244 508 632 Wait 137 | . 30 3 80 13 . 9 2 Move 4003 | 71 659 465 984 668 240 461 455 Hop . | . . . . . . . . Pick Up 69 | 7 11 10 19 . . 3 19 Fast Attach 31 | 7 2 . 5 . 2 . 15 Attach 30 | . 4 . 6 . . 4 16 Detach 2 | . 1 . . . . . 1 Swap 52 | . 10 2 25 2 . 3 10 Drop 53 | . 5 2 34 . 2 1 9 Fire 336 | 13 75 1 113 8 . 23 103 Melee . | . . . . . . . . Ram . | . . . . . . . . Kick 5 | . 1 2 . . . . 2 Crush 9 | . . . 3 2 . 4 . Escape Stasis . | . . . . . . . . Rewire . | . . . . . . . . Trap 3 | . . . 3 . . . . Miscellaneous . | . . . . . . . . Route ------- -11/Scrapyard -10/Materials (discovered 6 exits: *Mat x3 / *Min x2 / Sub) -10/Mines (discovered 3 exits: *Mat x2 / *Sub) -9/Materials (discovered 5 exits: *Mat x3 / *Min x2) -9/Mines (discovered 3 exits: *Mat x2 / *Exi) -9/Exiles -8/Mines (discovered 2 exits: *Mat x2) -8/Materials (discovered 2 exits: *Fac x2) History --------- Turn | Location | Event 5 | -11/Scrapyard | Discovered new exit (range 14) 165 | -11/Scrapyard | Entered Materials 165 | -10/Materials | Discovered new exit (range 8) 318 | -10/Materials | Build established: Mutant 340 | -10/Materials | Discovered new exit (range 16) 718 | -10/Materials | Discovered new exit (range 16) 1050 | -10/Materials | Lost 5 parts (1p1n1u2w) 1148 | -10/Materials | Discovered new exit (range 11) 1251 | -10/Materials | Repaired Lgt. Treads? 1588 | -10/Materials | Learned location of 2 exits from Mines 1668 | -10/Materials | Learned Materials emergency access door positions 1675 | -10/Materials | Learned location of Mines (-9) 1678 | -10/Materials | Loaded intel: 8 terminal locations 1690 | -10/Materials | Identified exit to Subcaves 1690 | -10/Materials | Identified exit to Materials 1939 | -10/Materials | Entered Mines 2171 | -10/Mines | Found a hidden stash of uninstalled traps 2605 | -10/Mines | Learned Materials garrison access intel 2808 | -10/Mines | Discovered exit to Materials (range 9) 2815 | -10/Mines | Received a Rocket Launcher from a helpful Derelict 3010 | -10/Mines | Met a Derelict shopkeep closing up shop 3173 | -10/Mines | Entered Materials 3173 | -9/Materials | Evolved 2 slots: Propulsion x1, Utility x1 3570 | -9/Materials | Discovered new exit (range 6) 3674 | -9/Materials | Discovered new exit (range 10) 4049 | -9/Materials | Discovered new exit (range 16) 4410 | -9/Materials | Discovered new exit (range 14) 4454 | -9/Materials | Build established: Scavenger-Mutant 4881 | -9/Materials | Discovered new exit (range 14) 5475 | -9/Materials | Entered Mines 5625 | -9/Mines | Deemed a non-threat by the Exiles lab entrance 5628 | -9/Mines | Discovered new exit (range 5) 5724 | -9/Mines | Discovered new exit (range 15) 6110 | -9/Mines | Assisted by bots powering up and referring to "LRC-V3" 6113 | -9/Mines | Learned 4 Materials zone layouts 6548 | -9/Mines | Learned location of Storage (-7) 6913 | -9/Mines | Discovered new exit (range 15) 7121 | -9/Mines | Entered Exiles 7121 | -9/Exiles | Accompanied by 3 allies 7177 | -9/Exiles | Met 8R-AWN 7196 | -9/Exiles | Met EX-HEX 7249 | -9/Exiles | Met EX-BIN 7380 | -9/Exiles | Learned location of Zion (-6) 7383 | -9/Exiles | Met EX-DEC 7498 | -9/Exiles | Discovered new exit (range 15) 7532 | -9/Exiles | Entered Mines 7532 | -8/Mines | Accompanied by 3 allies 7662 | -8/Mines | Discovered new exit (range 10) 8068 | -8/Mines | Core integrity fell below 50% 8681 | -8/Mines | Discovered new exit (range 15) 8738 | -8/Mines | Entered Materials 8738 | -8/Materials | Evolved 2 slots: Propulsion x1, Utility x1 8740 | -8/Materials | Loaded intel: 1 garrison access location 8984 | -8/Materials | Lost 6 parts (3n1u2w) 9006 | -8/Materials | Crushed by falling debris 9142 | -8/Materials | Lost 8 parts (1p2n3u2w) 9208 | -8/Materials | Core integrity fell below 50% 9263 | -8/Materials | Lost 3 parts (1n2w) 9374 | -8/Materials | Core integrity fell below 20% 9877 | -8/Materials | Discovered new exit (range 3) 9962 | -8/Materials | Identified exit to Factory 10021 | -8/Materials | Learned Factory stockpile data 10065 | -8/Materials | Destroyed by S-10 Pest with Light Assault Rifle Last Messages --------------- 10019_ K-01 Serf collects debris. 10019_ K-01 Serf destroyed. 10019_ A-02 Transporter suffers critical hit (Destroy). 10019_ Destroyed Lgt. Treads. 10021_ >> SKIM: Stored Factory stockpile data. 10022_ System corrupted: Matter fused (-10). 10022_ Destroyed Tractor Beam. 10024_ Acquired 48 matter. 10025_ R-06 Scavenger destroyed. 10032_ Acquired 46 matter. 10033_ Acquired 11 matter. 10036_ Acquired 17 matter. 10040_ Acquired 15 matter. 10040_ R-06 Scavenger collects Wheel. 10046_ R-06 Scavenger destroyed. 10051_ Acquired 91 matter. 10056_ W-25 Informer sends out distress signal. 10057_ System corrupted: Matter fused (-8). 10063_ Destroyed Flight Unit. Map ----- +----------------------------------------------------+ | ##?????????????????????????????????????????????? | | ##?????????????????????????????????????????????? | | ##?????????????????????????????????????????????? | | ##?????????????????????????????????????????????? | | ##?????????????????????????????????????????????? | | ##?????????????????????????????????????????????? | | ##?????????????????????????????????????????????? | | ?????????????????????????????????????????????? | | ?????????????????????????????????????????????? | | ?????????????????????????????????????????????? | | ?????????????????????????????????????????????? | | ?????????????????????????????????????????????? | | ?????????????????????????????????????????????? | | ?????????????????????????????????????????????? | | ?????????????????????????????????????????????? | | ??????? ???????????????????????????????????? | | ???????? ??????????????????????????????????? | | ####????????? ?????????????????????????????????? | | ##?????????# ?????????????????????????????????? | | ##?????????# ????????????????????????????????? | | ##????? ?# k #####+#########?????????????????? | | ##?????? # # #?????????????????? | | ##???????? + # !!= #?????????????????? | | ##?????????# # !! #?????????????????? | | ##???????????# ss != = #?????????????????? | | ##???? ??????# #@ #?????????????????? | | ##???? ??????# # / % #?????????????????? | | ##????/??????###### ########?????????????????? | | #????? ???????????# #????????????????????????? | | #????? ???????????#!! #????????????????????????? | | ###????? ???????????# * #????????????????????????? | | ???????? ???????????#=* #????##########??????????? | | ???????# #??????????#* =#????# #??????????? | | ???????# #??????????# = #????#![! #??????????? | | ???????# #???######## #????#[[! #??????????? | | ???????# #???# #= *#????#[[! #?########## | | ???????# #???# """ [# =!#????# ### | | ???????# #???# "R #=* #????# ## | | ???????# #???# """ + #????# ### | | ######## ##### # #????# #?# """"""" | | + # #????# [[ #?# """"""" | | ######## #######+#### #????#####"####?# """"""" | | ???????# #?????# #?# ####### = #??# """"""" | | ???????# ########### #??# """"""" | | ###????# # # #??########## | | " ###### # "" # #???????????? | | " + # T" # ####### #???????????? | | " # # """ "" #######?????## ##???????????? | | # # """ = #???????????# ! #????????????? | | + # """= #????????###?# *#????????????? | +----------------------------------------------------+ Best States ------------- Heat Dissipation 59 Energy Generation 14 Energy Capacity 280 Matter Stores 300 Matter Capacity 300 Sight Range 16 Terrain Scan Density 10 Base Temperature (-) 100 Armor Coverage 225 Propulsion Shielding 33 Weapon Shielding 33 Evasion (%) 55 Recoil Reduction 3 Offensive Hacking 10 Item Schematics ----------------- None Robot Schematics ------------------ None Fabricated ------------ Nothing Repaired ---------- Lgt. Treads | 28% | -10/Materials Alien Tech Used ----------------- None Achievements -------------- None Challenges ------------ None Game ------ Seed BattleRagnarokThermoblaster Manual? 0 Play Time 00:50:01 Cumulative 82.7 hours Start 2025.07.14 @ 13:47:28 End 2025.07.15 @ 17:11:52 Sessions 3 Manual Loads 0 Difficulty Rogue Special Mode None Game No. 78 Rogue 78 Adventurer 0 Explorer 0 Win Type - Total 1 Types 1/0/0/0/0/0/0/0/0/0 Lore% 44 Gallery% 43 Achievement% 45 Wizard Run 0 Options --------- Layout 1 ASCII 0 Keyboard 1 Movement Arrows Keybinds 0 Fullscreen 1 Font 24/Smallcaps Map View 50x40 Zoom Use 0% Tactical HUD 1 Map Filters NONE Filters NONE Steam 1 RUN: 1e290a42-c1ac-4110-9c4d-585da8118919